[Event "*** Titled Tuesday Blitz"]
[Site "Chess.com"]
[Date "2021.03.09"]
[Round "9"]
[White "Chernov_Alexander_A"]
[Black "A-S-00"]
[Result "1-0"]
[WhiteElo "2277"]
[BlackElo "2368"]
[TimeControl "180+1"]
[EndTime "11:47:15 PST"]
[Termination "Chernov_Alexander_A won by resignation"]

1. Nf3 {[%clk 0:03:00.9]} 1... d5 {[%clk 0:02:58.5]} 2. g3 {[%clk 0:03:00.4]}
2... c6 {[%clk 0:02:58.4]} 3. Bg2 {[%clk 0:03:00.5]} 3... g6 {[%clk 0:02:58.3]}
4. O-O {[%clk 0:03:00.3]} 4... Bg7 {[%clk 0:02:59.1]} 5. d4 {[%clk 0:02:49.2]}
5... Nf6 {[%clk 0:02:54.7]} 6. c4 {[%clk 0:02:48.5]} 6... O-O {[%clk 0:02:54.3]}
7. cxd5 {[%clk 0:02:48.3]} 7... cxd5 {[%clk 0:02:53.2]} 8. Nc3 {[%clk
0:02:47.7]} 8... Nc6 {[%clk 0:02:51.6]} 9. Ne5 {[%clk 0:02:47.3]} 9... e6 {[%clk
0:02:30.3]} 10. Nxc6 {[%clk 0:02:45.8]} 10... bxc6 {[%clk 0:02:30]} 11. Bf4
{[%clk 0:02:46.3]} 11... Nd7 {[%clk 0:02:19.5]} 12. Na4 {[%clk 0:02:44.7]} 12...
e5 {[%clk 0:02:16.1]} 13. dxe5 {[%clk 0:02:44.7]} 13... Nxe5 {[%clk 0:02:15.3]}
14. Rc1 {[%clk 0:02:43]} 14... Bd7 {[%clk 0:01:48.3]} 15. b3 {[%clk 0:02:38.9]}
15... Qe7 {[%clk 0:01:36]} 16. Qc2 {[%clk 0:02:25.9]} 16... Rfc8 {[%clk
0:01:21.8]} 17. Qc5 {[%clk 0:02:22.8]} 17... Qe8 {[%clk 0:01:09.1]} 18. Qc2
{[%clk 0:02:14.2]} 18... Bf5 {[%clk 0:01:02.8]} 19. Qd2 {[%clk 0:02:00.5]} 19...
Rd8 {[%clk 0:00:51.1]} 20. Nc5 {[%clk 0:01:47]} 20... Qe7 {[%clk 0:00:24.2]} 21.
Rfe1 {[%clk 0:01:44.2]} 21... Rac8 {[%clk 0:00:19.5]} 22. Qa5 {[%clk 0:01:30.1]}
22... f6 {[%clk 0:00:18.8]} 23. Be3 {[%clk 0:01:10.2]} 23... d4 {[%clk
0:00:17.6]} 24. Bf4 {[%clk 0:01:08.1]} 24... g5 {[%clk 0:00:17.2]} 25. Bd2
{[%clk 0:01:07.1]} 25... Ng4 {[%clk 0:00:15.8]} 26. Nd3 {[%clk 0:00:58.4]} 26...
Be4 {[%clk 0:00:11.6]} 27. f3 {[%clk 0:00:52.9]} 27... Bxd3 {[%clk 0:00:09.9]}
28. exd3 {[%clk 0:00:45.2]} 28... Ne5 {[%clk 0:00:10.8]} 29. f4 {[%clk
0:00:42.9]} 29... Ng4 {[%clk 0:00:11.7]} 30. Rxe7 {[%clk 0:00:41.8]} 30... Ne3
{[%clk 0:00:12.6]} 31. Bxe3 {[%clk 0:00:40.8]} 31... dxe3 {[%clk 0:00:13.5]} 32.
Rxe3 {[%clk 0:00:41]} 1-0

[Event "*** Titled Tuesday Blitz"]
[Site "Chess.com"]
[Date "2021.03.09"]
[Round "9"]
[White "Sibelephant"]
[Black "Firouzja2003"]
[Result "1-0"]
[WhiteElo "3121"]
[BlackElo "3143"]
[TimeControl "180+1"]
[EndTime "11:47:16 PST"]
[Termination "Sibelephant won by resignation"]

1. c4 {[%clk 0:02:59.6]} 1... Nf6 {[%clk 0:02:58.9]} 2. Nc3 {[%clk 0:02:59.5]}
2... g6 {[%clk 0:02:57.3]} 3. g3 {[%clk 0:02:59.4]} 3... Bg7 {[%clk 0:02:56.1]}
4. Bg2 {[%clk 0:02:59.8]} 4... O-O {[%clk 0:02:56.6]} 5. e4 {[%clk 0:02:59.6]}
5... d6 {[%clk 0:02:53.3]} 6. Nge2 {[%clk 0:02:59.6]} 6... e5 {[%clk 0:02:48.6]}
7. O-O {[%clk 0:02:58.9]} 7... Nbd7 {[%clk 0:02:48]} 8. d3 {[%clk 0:02:58.4]}
8... c6 {[%clk 0:02:48.2]} 9. h3 {[%clk 0:02:56.7]} 9... a6 {[%clk 0:02:48]} 10.
Be3 {[%clk 0:02:51.1]} 10... b5 {[%clk 0:02:46.9]} 11. Qd2 {[%clk 0:02:32.8]}
11... Bb7 {[%clk 0:02:44.8]} 12. Bh6 {[%clk 0:02:25.6]} 12... Bxh6 {[%clk
0:02:31.4]} 13. Qxh6 {[%clk 0:02:25.3]} 13... b4 {[%clk 0:02:32]} 14. Nd1 {[%clk
0:02:18.5]} 14... d5 {[%clk 0:02:32.1]} 15. exd5 {[%clk 0:02:16.4]} 15... cxd5
{[%clk 0:02:33]} 16. Ne3 {[%clk 0:02:16.9]} 16... Nc5 {[%clk 0:02:22.5]} 17. d4
{[%clk 0:02:09]} 17... exd4 {[%clk 0:01:06.5]} 18. Nxd4 {[%clk 0:02:08.9]} 18...
Nfe4 {[%clk 0:01:06.8]} 19. cxd5 {[%clk 0:01:38.3]} 19... Qf6 {[%clk 0:01:02.4]}
20. Rad1 {[%clk 0:01:33.3]} 20... Rad8 {[%clk 0:01:01.8]} 21. Ng4 {[%clk
0:01:07.4]} 21... Qg7 {[%clk 0:00:57.7]} 22. Qxg7+ {[%clk 0:01:04.1]} 22... Kxg7
{[%clk 0:00:58.6]} 23. Nc6 {[%clk 0:01:03.8]} 23... Rd6 {[%clk 0:00:45]} 24.
Nge5 {[%clk 0:01:02.6]} 24... Re8 {[%clk 0:00:33.6]} 25. Nc4 {[%clk 0:00:52.2]}
25... Rf6 {[%clk 0:00:17.6]} 26. Nxb4 {[%clk 0:00:51.5]} 26... Ng5 {[%clk
0:00:15.4]} 27. Nc6 {[%clk 0:00:43.3]} 27... Rc8 {[%clk 0:00:10.4]} 28. Rfe1
{[%clk 0:00:36.8]} 28... Nf3+ {[%clk 0:00:08.5]} 29. Bxf3 {[%clk 0:00:37.1]}
29... Rxf3 {[%clk 0:00:09.4]} 30. Nd6 {[%clk 0:00:37.7]} 30... Rc7 {[%clk
0:00:06.4]} 31. Ne8+ {[%clk 0:00:37.4]} 1-0

[Event "*** Titled Tuesday Blitz"]
[Site "Chess.com"]
[Date "2021.03.09"]
[Round "9"]
[White "jordanasoul"]
[Black "niki_2003"]
[Result "0-1"]
[WhiteElo "2167"]
[BlackElo "2042"]
[TimeControl "180+1"]
[EndTime "11:47:23 PST"]
[Termination "niki_2003 won by resignation"]

1. e4 {[%clk 0:03:00.9]} 1... c5 {[%clk 0:02:54.8]} 2. Nc3 {[%clk 0:02:57.1]}
2... a6 {[%clk 0:02:52.9]} 3. a4 {[%clk 0:02:49.6]} 3... e6 {[%clk 0:02:49.1]}
4. d3 {[%clk 0:02:47.2]} 4... d5 {[%clk 0:02:48]} 5. g3 {[%clk 0:02:16.9]} 5...
d4 {[%clk 0:02:47.1]} 6. Nce2 {[%clk 0:02:16.2]} 6... Nc6 {[%clk 0:02:22.9]} 7.
Bg2 {[%clk 0:02:15]} 7... e5 {[%clk 0:02:22.5]} 8. f4 {[%clk 0:02:12.3]} 8...
Bd6 {[%clk 0:02:17.8]} 9. Nf3 {[%clk 0:02:10.3]} 9... Bg4 {[%clk 0:02:14.3]} 10.
O-O {[%clk 0:02:07.5]} 10... Nf6 {[%clk 0:02:12.1]} 11. f5 {[%clk 0:01:59.8]}
11... O-O {[%clk 0:02:10.6]} 12. h3 {[%clk 0:01:59.3]} 12... Bxf3 {[%clk
0:02:09.4]} 13. Rxf3 {[%clk 0:01:47.2]} 13... g6 {[%clk 0:02:10.3]} 14. g4
{[%clk 0:01:45.8]} 14... Nd7 {[%clk 0:02:08.4]} 15. Qf1 {[%clk 0:01:38.5]} 15...
gxf5 {[%clk 0:02:07.5]} 16. Rxf5 {[%clk 0:01:18.4]} 16... f6 {[%clk 0:02:05.4]}
17. Bh6 {[%clk 0:01:13.2]} 17... Rf7 {[%clk 0:02:02.6]} 18. Qf2 {[%clk
0:01:12.8]} 18... Kh8 {[%clk 0:02:02.2]} 19. Rh5 {[%clk 0:01:11.1]} 19... Bf8
{[%clk 0:02:02.3]} 20. Rf1 {[%clk 0:01:08.5]} 20... Bxh6 {[%clk 0:02:02.2]} 21.
Rxh6 {[%clk 0:01:08.3]} 21... Qf8 {[%clk 0:02:02.6]} 22. Qh4 {[%clk 0:01:08]}
22... Qg7 {[%clk 0:02:01.2]} 23. Ng3 {[%clk 0:01:07.1]} 23... Raf8 {[%clk
0:02:01.2]} 24. Nf5 {[%clk 0:01:06.9]} 24... Qg8 {[%clk 0:01:58.9]} 25. Nd6
{[%clk 0:01:04]} 25... Re7 {[%clk 0:01:58.6]} 26. Nxb7 {[%clk 0:01:02]} 26...
Rg7 {[%clk 0:01:54.4]} 27. Nd6 {[%clk 0:01:00.5]} 27... Ndb8 {[%clk 0:01:51.2]}
28. Nf5 {[%clk 0:00:59.2]} 28... Rg5 {[%clk 0:01:48.2]} 29. Kh1 {[%clk
0:00:53.9]} 29... Nd7 {[%clk 0:01:46.2]} 30. Nd6 {[%clk 0:00:47.5]} 30... Ne7
{[%clk 0:01:45.5]} 31. Nf5 {[%clk 0:00:40.9]} 31... Nxf5 {[%clk 0:01:43.6]} 32.
exf5 {[%clk 0:00:39.5]} 32... Rf7 {[%clk 0:01:42.3]} 33. Bd5 {[%clk 0:00:37.8]}
33... Qg7 {[%clk 0:01:39.5]} 34. Bxf7 {[%clk 0:00:36.5]} 34... Qxf7 {[%clk
0:01:40.4]} 35. Qg3 {[%clk 0:00:34.7]} 35... Qg7 {[%clk 0:01:39.1]} 36. Rh4
{[%clk 0:00:32.9]} 36... Nb6 {[%clk 0:01:37.7]} 37. Qf3 {[%clk 0:00:32.1]} 37...
Qd7 {[%clk 0:01:35.7]} 38. b3 {[%clk 0:00:31.3]} 38... Nd5 {[%clk 0:01:35]} 39.
Ra1 {[%clk 0:00:28.7]} 39... Ne3 {[%clk 0:01:34.2]} 40. Qa8+ {[%clk 0:00:27.4]}
40... Rg8 {[%clk 0:01:32.6]} 41. Qe4 {[%clk 0:00:26.1]} 41... Rg5 {[%clk
0:01:27.2]} 42. c3 {[%clk 0:00:22.9]} 42... Kg7 {[%clk 0:01:15.5]} 43. cxd4
{[%clk 0:00:20.9]} 43... cxd4 {[%clk 0:01:15.5]} 44. Rc1 {[%clk 0:00:20.8]}
44... Kh8 {[%clk 0:01:10.8]} 45. Qa8+ {[%clk 0:00:20]} 45... Kg7 {[%clk
0:01:09.9]} 46. Qb8 {[%clk 0:00:20.3]} 46... Qd5+ {[%clk 0:01:09.3]} 0-1

[Event "*** Titled Tuesday Blitz"]
[Site "Chess.com"]
[Date "2021.03.09"]
[Round "9"]
[White "woodhy"]
[Black "katchesskat"]
[Result "1-0"]
[WhiteElo "2458"]
[BlackElo "2315"]
[TimeControl "180+1"]
[EndTime "11:47:29 PST"]
[Termination "woodhy won on time"]

1. e4 {[%clk 0:02:55.9]} 1... c5 {[%clk 0:03:00.9]} 2. Nf3 {[%clk 0:02:54]} 2...
e6 {[%clk 0:03:00.5]} 3. d4 {[%clk 0:02:54]} 3... cxd4 {[%clk 0:03:00.4]} 4.
Nxd4 {[%clk 0:02:54.9]} 4... a6 {[%clk 0:03:00.6]} 5. c4 {[%clk 0:02:54.2]} 5...
Qc7 {[%clk 0:03:00.8]} 6. a3 {[%clk 0:02:52.8]} 6... b6 {[%clk 0:03:01]} 7. Nc3
{[%clk 0:02:52.1]} 7... Bb7 {[%clk 0:03:01.2]} 8. Bd3 {[%clk 0:02:35.3]} 8...
Nf6 {[%clk 0:03:00.6]} 9. O-O {[%clk 0:02:29.6]} 9... h5 {[%clk 0:02:57.1]} 10.
h3 {[%clk 0:02:11.8]} 10... Bc5 {[%clk 0:02:34.6]} 11. Be3 {[%clk 0:02:10.8]}
11... Nc6 {[%clk 0:02:33.9]} 12. Nc2 {[%clk 0:02:09]} 12... Ne5 {[%clk
0:02:25.9]} 13. f4 {[%clk 0:02:04.5]} 13... Nxd3 {[%clk 0:02:01.5]} 14. Qxd3
{[%clk 0:02:05.4]} 14... Rc8 {[%clk 0:01:53.2]} 15. b4 {[%clk 0:02:04.1]} 15...
Be7 {[%clk 0:01:45.7]} 16. e5 {[%clk 0:01:58.1]} 16... Ng8 {[%clk 0:01:41]} 17.
c5 {[%clk 0:01:52.1]} 17... bxc5 {[%clk 0:01:32.8]} 18. b5 {[%clk 0:01:52.2]}
18... Nh6 {[%clk 0:01:26.8]} 19. bxa6 {[%clk 0:01:50.4]} 19... Ba8 {[%clk
0:01:20.6]} 20. Nb5 {[%clk 0:01:48.4]} 20... Qc6 {[%clk 0:01:13.9]} 21. Rf2
{[%clk 0:01:44.2]} 21... c4 {[%clk 0:01:02.8]} 22. Nd6+ {[%clk 0:01:40.9]} 22...
Bxd6 {[%clk 0:00:56.7]} 23. Qxd6 {[%clk 0:01:41.8]} 23... Qe4 {[%clk 0:00:38.8]}
24. Rd1 {[%clk 0:01:37]} 24... Bd5 {[%clk 0:00:38.3]} 25. a7 {[%clk 0:01:30.4]}
25... Nf5 {[%clk 0:00:37]} 26. Qb6 {[%clk 0:01:21.9]} 26... O-O {[%clk
0:00:24.1]} 27. Bc5 {[%clk 0:01:16]} 27... Rfe8 {[%clk 0:00:14.8]} 28. Nb4
{[%clk 0:01:15.2]} 28... Ba8 {[%clk 0:00:08.1]} 29. Rc1 {[%clk 0:01:06.5]} 29...
Nh4 {[%clk 0:00:06.9]} 30. Rcc2 {[%clk 0:01:01.9]} 30... Qe1+ {[%clk 0:00:06.2]}
31. Kh2 {[%clk 0:01:01.2]} 31... Nf5 {[%clk 0:00:04.8]} 32. Rxc4 {[%clk
0:00:56.1]} 32... h4 {[%clk 0:00:04.7]} 33. Nd3 {[%clk 0:00:51.2]} 33... Qa1
{[%clk 0:00:03.6]} 34. Qb2 {[%clk 0:00:49.4]} 34... Qd1 {[%clk 0:00:02.7]} 35.
Qd2 {[%clk 0:00:49.3]} 35... Qa1 {[%clk 0:00:02]} 36. Rc1 {[%clk 0:00:41.8]} 1-0

[Event "*** Titled Tuesday Blitz"]
[Site "Chess.com"]
[Date "2021.03.09"]
[Round "9"]
[White "ARTHURMOTIVATOR"]
[Black "Kislov_Oleg"]
[Result "0-1"]
[WhiteElo "2348"]
[BlackElo "2481"]
[TimeControl "180+1"]
[EndTime "11:47:31 PST"]
[Termination "Kislov_Oleg won on time"]

1. e4 {[%clk 0:03:00.9]} 1... c5 {[%clk 0:02:55.7]} 2. b3 {[%clk 0:02:58.2]}
2... Nc6 {[%clk 0:02:54.6]} 3. Bb2 {[%clk 0:02:56.6]} 3... e5 {[%clk 0:02:54.7]}
4. Bb5 {[%clk 0:02:54.8]} 4... d6 {[%clk 0:02:53.6]} 5. Bxc6+ {[%clk 0:02:53.9]}
5... bxc6 {[%clk 0:02:53.5]} 6. d3 {[%clk 0:02:54.2]} 6... g6 {[%clk 0:02:53.9]}
7. Ne2 {[%clk 0:02:48.3]} 7... Bg7 {[%clk 0:02:53.1]} 8. f4 {[%clk 0:02:45.2]}
8... f6 {[%clk 0:02:40.9]} 9. O-O {[%clk 0:02:39.1]} 9... Nh6 {[%clk 0:02:27.4]}
10. fxe5 {[%clk 0:02:35.2]} 10... fxe5 {[%clk 0:02:26.2]} 11. Nd2 {[%clk
0:01:59.3]} 11... Nf7 {[%clk 0:02:20]} 12. Nc4 {[%clk 0:01:35.1]} 12... O-O
{[%clk 0:02:18.5]} 13. Qe1 {[%clk 0:01:23.3]} 13... Be6 {[%clk 0:02:14.2]} 14.
Qg3 {[%clk 0:01:18.9]} 14... Qe7 {[%clk 0:02:11.5]} 15. h4 {[%clk 0:01:04.2]}
15... Nh6 {[%clk 0:02:09.5]} 16. Ne3 {[%clk 0:00:53.5]} 16... Rf4 {[%clk
0:01:48.9]} 17. Nxf4 {[%clk 0:00:34.7]} 17... exf4 {[%clk 0:01:48.2]} 18. Qxf4
{[%clk 0:00:29.8]} 18... Bxb2 {[%clk 0:01:48]} 19. Qxh6 {[%clk 0:00:27.8]} 19...
Bxa1 {[%clk 0:01:34.8]} 20. Rxa1 {[%clk 0:00:26.8]} 20... Qg7 {[%clk 0:01:35.2]}
21. Qxg7+ {[%clk 0:00:21.3]} 21... Kxg7 {[%clk 0:01:36.1]} 22. Rf1 {[%clk
0:00:20.5]} 22... d5 {[%clk 0:01:34]} 23. Kh2 {[%clk 0:00:18.8]} 23... Re8
{[%clk 0:01:28.9]} 24. Kg3 {[%clk 0:00:15.5]} 24... c4 {[%clk 0:01:29]} 25. bxc4
{[%clk 0:00:14.2]} 25... dxc4 {[%clk 0:01:29.4]} 26. Rb1 {[%clk 0:00:13.3]}
26... cxd3 {[%clk 0:01:27.6]} 27. Rb7+ {[%clk 0:00:13]} 27... Kf6 {[%clk
0:01:27.1]} 28. cxd3 {[%clk 0:00:13.4]} 28... Rd8 {[%clk 0:01:22.7]} 29. Kf4
{[%clk 0:00:08.3]} 29... Bxa2 {[%clk 0:01:18.5]} 30. Rxa7 {[%clk 0:00:08.4]}
30... Rxd3 {[%clk 0:01:17.5]} 31. e5+ {[%clk 0:00:07.1]} 31... Ke6 {[%clk
0:01:17]} 32. Ke4 {[%clk 0:00:07.3]} 32... Rd2 {[%clk 0:01:15.2]} 33. Rxh7
{[%clk 0:00:06.8]} 33... Bd5+ {[%clk 0:01:10.7]} 34. Kf4 {[%clk 0:00:07]} 34...
Bxg2 {[%clk 0:01:09.4]} 35. Rh6 {[%clk 0:00:07]} 35... Bd5 {[%clk 0:01:06.6]}
36. Rxg6+ {[%clk 0:00:06.4]} 36... Ke7 {[%clk 0:01:07.3]} 37. Rf6 {[%clk
0:00:06]} 37... Rf2+ {[%clk 0:01:06.9]} 38. Kg5 {[%clk 0:00:06.1]} 38... Rg2+
{[%clk 0:01:07.3]} 39. Kf4 {[%clk 0:00:05.6]} 39... Rf2+ {[%clk 0:01:06.6]} 40.
Kg5 {[%clk 0:00:06]} 40... Re2 {[%clk 0:01:06.8]} 41. Nf5+ {[%clk 0:00:05.5]}
41... Kd7 {[%clk 0:01:06]} 42. Re6 {[%clk 0:00:05.1]} 42... Bxe6 {[%clk
0:01:04.1]} 43. Kf6 {[%clk 0:00:02.1]} 43... Rf2 {[%clk 0:01:02.8]} 0-1

[Event "*** Titled Tuesday Blitz"]
[Site "Chess.com"]
[Date "2021.03.09"]
[Round "9"]
[White "Lupul_Cenusiu"]
[Black "davigator"]
[Result "1-0"]
[WhiteElo "2573"]
[BlackElo "2409"]
[TimeControl "180+1"]
[EndTime "11:47:32 PST"]
[Termination "Lupul_Cenusiu won by checkmate"]

1. d4 {[%clk 0:03:00.9]} 1... Nf6 {[%clk 0:02:58.7]} 2. c4 {[%clk 0:03:00.5]}
2... e6 {[%clk 0:02:58.6]} 3. Nc3 {[%clk 0:03:00.6]} 3... Bb4 {[%clk 0:02:57]}
4. e3 {[%clk 0:03:00.9]} 4... c5 {[%clk 0:02:55.8]} 5. Nf3 {[%clk 0:03:00.4]}
5... Nc6 {[%clk 0:02:54.6]} 6. Bd2 {[%clk 0:02:56.8]} 6... O-O {[%clk 0:02:54]}
7. Be2 {[%clk 0:02:55.7]} 7... d5 {[%clk 0:02:53.1]} 8. cxd5 {[%clk 0:02:53.8]}
8... exd5 {[%clk 0:02:53.3]} 9. dxc5 {[%clk 0:02:48.3]} 9... Bxc5 {[%clk
0:02:53.2]} 10. Rc1 {[%clk 0:02:45.7]} 10... Qe7 {[%clk 0:02:50.9]} 11. O-O
{[%clk 0:02:42.8]} 11... Rd8 {[%clk 0:02:49.6]} 12. Na4 {[%clk 0:02:39.6]} 12...
Bd6 {[%clk 0:02:48.9]} 13. Bc3 {[%clk 0:02:31.8]} 13... Ne4 {[%clk 0:02:24]} 14.
Bd4 {[%clk 0:02:31]} 14... Bg4 {[%clk 0:02:16]} 15. Nc3 {[%clk 0:02:26.1]} 15...
Bc7 {[%clk 0:02:07.8]} 16. Nb5 {[%clk 0:02:21.4]} 16... Bb8 {[%clk 0:02:05]} 17.
h3 {[%clk 0:02:17.5]} 17... Be6 {[%clk 0:01:55.3]} 18. Nc3 {[%clk 0:02:09.5]}
18... Bc7 {[%clk 0:01:51.7]} 19. a3 {[%clk 0:02:04.4]} 19... Rac8 {[%clk
0:01:51.4]} 20. b4 {[%clk 0:02:03.1]} 20... Bb8 {[%clk 0:01:49.4]} 21. Na4
{[%clk 0:01:55.6]} 21... f5 {[%clk 0:01:27.8]} 22. Bb2 {[%clk 0:01:47]} 22... f4
{[%clk 0:01:23.3]} 23. exf4 {[%clk 0:01:46.4]} 23... Bxf4 {[%clk 0:01:22.2]} 24.
Rc2 {[%clk 0:01:45]} 24... Bf5 {[%clk 0:01:19.1]} 25. Bd3 {[%clk 0:01:36.3]}
25... Bg6 {[%clk 0:01:14.9]} 26. Qa1 {[%clk 0:01:24.8]} 26... Rf8 {[%clk
0:01:03.4]} 27. Nc5 {[%clk 0:01:10]} 27... b6 {[%clk 0:00:55.7]} 28. Nxe4 {[%clk
0:01:05.7]} 28... dxe4 {[%clk 0:00:54.7]} 29. Bc4+ {[%clk 0:01:05.7]} 29... Kh8
{[%clk 0:00:54.4]} 30. Nh2 {[%clk 0:01:00.2]} 30... Ne5 {[%clk 0:00:51.1]} 31.
Bb3 {[%clk 0:00:46.4]} 31... Nd3 {[%clk 0:00:43.7]} 32. Rxc8 {[%clk 0:00:43.2]}
32... Rxc8 {[%clk 0:00:43.2]} 33. Bd4 {[%clk 0:00:38.5]} 33... Rd8 {[%clk
0:00:42.8]} 34. Ng4 {[%clk 0:00:37.2]} 34... h5 {[%clk 0:00:40.7]} 35. Ne3
{[%clk 0:00:36]} 35... Bc7 {[%clk 0:00:34.9]} 36. Nd5 {[%clk 0:00:29.9]} 36...
Qd6 {[%clk 0:00:34.9]} 37. Bxg7+ {[%clk 0:00:29.3]} 37... Kg8 {[%clk 0:00:34]}
38. Nxc7+ {[%clk 0:00:24.7]} 38... Kh7 {[%clk 0:00:32.7]} 39. Ne6 {[%clk
0:00:20.3]} 39... Rg8 {[%clk 0:00:29.7]} 40. Ng5# {[%clk 0:00:20.2]} 1-0

[Event "*** Titled Tuesday Blitz"]
[Site "Chess.com"]
[Date "2021.03.09"]
[Round "9"]
[White "KruHor"]
[Black "ikhasu"]
[Result "1-0"]
[WhiteElo "2529"]
[BlackElo "2386"]
[TimeControl "180+1"]
[EndTime "11:47:34 PST"]
[Termination "KruHor won by resignation"]

1. e4 {[%clk 0:02:57.9]} 1... e5 {[%clk 0:02:55.4]} 2. d4 {[%clk 0:02:56.7]}
2... exd4 {[%clk 0:02:53.1]} 3. Nf3 {[%clk 0:02:56.1]} 3... Nc6 {[%clk
0:02:52.5]} 4. c3 {[%clk 0:02:54.5]} 4... dxc3 {[%clk 0:02:43.2]} 5. Bc4 {[%clk
0:02:52.7]} 5... d6 {[%clk 0:02:33.1]} 6. Nxc3 {[%clk 0:02:37]} 6... Be6 {[%clk
0:02:27.7]} 7. Bxe6 {[%clk 0:02:32.7]} 7... fxe6 {[%clk 0:02:27.5]} 8. Qb3
{[%clk 0:02:32.6]} 8... Qc8 {[%clk 0:02:22.6]} 9. O-O {[%clk 0:02:28.3]} 9...
Be7 {[%clk 0:02:19.1]} 10. Bf4 {[%clk 0:02:19.6]} 10... Nh6 {[%clk 0:01:51]} 11.
Bxh6 {[%clk 0:01:34]} 11... gxh6 {[%clk 0:01:50.8]} 12. Rad1 {[%clk 0:01:33.5]}
12... Rg8 {[%clk 0:01:38.4]} 13. Rfe1 {[%clk 0:01:30.8]} 13... Qd7 {[%clk
0:01:29.7]} 14. Qxb7 {[%clk 0:01:23.6]} 14... Rb8 {[%clk 0:01:28.1]} 15. Qa6
{[%clk 0:01:23.1]} 15... Rxb2 {[%clk 0:01:27.7]} 16. Rb1 {[%clk 0:01:05.2]}
16... Rb6 {[%clk 0:01:25.1]} 17. Qc4 {[%clk 0:01:02.2]} 17... Rg6 {[%clk
0:01:11]} 18. Rbd1 {[%clk 0:01:01.3]} 18... e5 {[%clk 0:00:59.3]} 19. Ne2 {[%clk
0:00:47.3]} 19... Qg4 {[%clk 0:00:51.2]} 20. Ng3 {[%clk 0:00:46.6]} 20... h5
{[%clk 0:00:49.9]} 21. h3 {[%clk 0:00:45.9]} 21... Qf4 {[%clk 0:00:48.7]} 22.
Re3 {[%clk 0:00:41.2]} 22... h4 {[%clk 0:00:47.9]} 23. Nf5 {[%clk 0:00:39.9]}
23... Bf8 {[%clk 0:00:22.7]} 24. Rc3 {[%clk 0:00:37]} 24... Rf6 {[%clk
0:00:16.2]} 25. Qa4 {[%clk 0:00:24.1]} 25... Rxf5 {[%clk 0:00:15.1]} 26. Rxc6
{[%clk 0:00:23.7]} 26... Rxc6 {[%clk 0:00:04]} 27. Qxc6+ {[%clk 0:00:22.8]}
27... Ke7 {[%clk 0:00:04]} 28. exf5 {[%clk 0:00:22.3]} 1-0

[Event "*** Titled Tuesday Blitz"]
[Site "Chess.com"]
[Date "2021.03.09"]
[Round "9"]
[White "Nemsko"]
[Black "Herman-NY"]
[Result "0-1"]
[WhiteElo "2293"]
[BlackElo "2453"]
[TimeControl "180+1"]
[EndTime "11:47:36 PST"]
[Termination "Herman-NY won on time"]

1. e4 {[%clk 0:03:00.9]} 1... e5 {[%clk 0:03:00.2]} 2. Nf3 {[%clk 0:03:00.6]}
2... Nc6 {[%clk 0:03:00.5]} 3. Bb5 {[%clk 0:03:00.2]} 3... f5 {[%clk 0:03:00.5]}
4. d3 {[%clk 0:02:55.5]} 4... fxe4 {[%clk 0:02:57.8]} 5. dxe4 {[%clk 0:02:56.4]}
5... Nf6 {[%clk 0:02:58.2]} 6. Qd3 {[%clk 0:02:53.2]} 6... d6 {[%clk 0:02:54.6]}
7. Nc3 {[%clk 0:02:50.6]} 7... Be6 {[%clk 0:02:45.1]} 8. Bg5 {[%clk 0:02:49]}
8... Be7 {[%clk 0:02:41.7]} 9. O-O {[%clk 0:02:41.4]} 9... O-O {[%clk
0:02:39.4]} 10. a3 {[%clk 0:02:39]} 10... Qd7 {[%clk 0:02:37.2]} 11. Bc4 {[%clk
0:02:30.1]} 11... Kh8 {[%clk 0:02:35.2]} 12. Bxe6 {[%clk 0:02:18.2]} 12... Qxe6
{[%clk 0:02:35.5]} 13. h3 {[%clk 0:02:17.6]} 13... Rf7 {[%clk 0:02:01.5]} 14.
Nh2 {[%clk 0:02:10.9]} 14... Nh5 {[%clk 0:01:57.6]} 15. Bxe7 {[%clk 0:02:09.1]}
15... Nxe7 {[%clk 0:01:14.2]} 16. Rad1 {[%clk 0:01:40.1]} 16... Nf4 {[%clk
0:01:09.5]} 17. Qe3 {[%clk 0:01:31.1]} 17... Raf8 {[%clk 0:00:44.1]} 18. Kh1
{[%clk 0:01:16.5]} 18... Qg6 {[%clk 0:00:29.8]} 19. Rg1 {[%clk 0:01:12.3]} 19...
Nc6 {[%clk 0:00:14.1]} 20. Nf1 {[%clk 0:00:53.4]} 20... Qh6 {[%clk 0:00:11.7]}
21. Kh2 {[%clk 0:00:48.2]} 21... Nd4 {[%clk 0:00:11.6]} 22. Rd2 {[%clk
0:00:36.8]} 22... c6 {[%clk 0:00:11.3]} 23. Qg3 {[%clk 0:00:22.9]} 23... Rf6
{[%clk 0:00:11.2]} 24. Ne3 {[%clk 0:00:19.6]} 24... Rg6 {[%clk 0:00:11.6]} 25.
Ng4 {[%clk 0:00:20]} 25... Qg5 {[%clk 0:00:11.4]} 26. Ne3 {[%clk 0:00:06.5]}
26... Qf6 {[%clk 0:00:09.4]} 27. Ng4 {[%clk 0:00:05.1]} 27... Qg5 {[%clk
0:00:09.3]} 28. Ne3 {[%clk 0:00:05.3]} 28... Qe7 {[%clk 0:00:10]} 29. Ng4 {[%clk
0:00:02.2]} 29... h5 {[%clk 0:00:10.3]} 0-1